fUSD/lending_fUSD_20240822
["ID","MTS","AMOUNT","RATE_DAILY","PERIOD"]
[335502405,1724284885612,250.0,9.751e-05,2]
[335502406,1724284921009,5341.96901162,9.789e-05,2]
[335502407,1724284921033,4658.03098838,9.789e-05,2]
[335502408,1724284924554,200.0,9.792e-05,2]
[335502409,1724284987215,838.98,9.859e-05,2]
[335502411,1724284994260,4302.98901162,9.792e-05,2]
[335502412,1724284994280,10000.0,9.792e-05,2]
[335502413,1724284994303,1944.41827978,9.792e-05,2]
[335502414,1724285003172,-150.0,9.909e-05,2]
[335502415,1724285003336,-150.0,9.909e-05,2]
[335502416,1724285006365,150.0,9.772e-05,2]
[335502417,1724285006385,119.44,9.772e-05,2]
[335502418,1724285028454,300.0,9.81e-05,2]
[335502419,1724285032668,150.0,9.792e-05,2]
[335502420,1724285032690,150.0,9.792e-05,2]
[335502421,1724285032711,150.0,9.792e-05,2]
[335502422,1724285032733,50.0,9.792e-05,2]
[335502423,1724285032998,100.0,9.792e-05,2]
[335502424,1724285033021,150.0,9.792e-05,2]
[335502425,1724285033047,150.0,9.792e-05,2]
[335502426,1724285033072,100.0,9.792e-05,2]
[335502427,1724285033425,50.0,9.792e-05,2]
[335502428,1724285033445,150.0,9.792e-05,2]
[335502429,1724285033464,150.0,9.792e-05,2]
[335502430,1724285033484,150.0,9.792e-05,2]
[335502431,1724285033808,150.0,9.792e-05,2]
[335502432,1724285033829,150.0,9.792e-05,2]
[335502433,1724285033849,150.0,9.792e-05,2]
[335502434,1724285033869,50.0,9.792e-05,2]
[335502435,1724285034128,100.0,9.792e-05,2]
[335502436,1724285034149,150.0,9.792e-05,2]
[335502437,1724285034171,150.0,9.792e-05,2]
[335502438,1724285034190,100.0,9.792e-05,2]
[335502439,1724285034547,150.0,9.792e-05,2]
[335502440,1724285034568,150.0,9.792e-05,2]
[335502441,1724285034588,150.0,9.792e-05,2]
[335502442,1724285034608,150.0,9.792e-05,2]
[335502443,1724285034629,150.0,9.792e-05,2]
[335502444,1724285034652,72.0,9.792e-05,2]
[335502445,1724285044524,-150.0,9.909e-05,2]
[335502446,1724285044680,-150.0,9.909e-05,2]
[335502447,1724285072711,150.0,9.839e-05,2]
[335502448,1724285072731,150.0,9.839e-05,2]
[335502449,1724285072751,150.0,9.839e-05,2]
[335502450,1724285072771,50.0,9.839e-05,2]
[335502451,1724285083271,5966.42391457,9.792e-05,2]
[335502452,1724285104147,258.56,9.751e-05,2]
[335502453,1724285104171,1739.15780565,9.751e-05,2]
[335502454,1724285104193,10000.0,9.751e-05,2]
[335502455,1724285104215,10000.0,9.751e-05,2]
[335502456,1724285104237,1902.28219435,9.751e-05,2]
[335502457,1724285116800,3000.22,9.808e-05,2]
[335502458,1724285129590,150.0,9.839e-05,2]
[335502459,1724285129611,150.0,9.839e-05,2]
[335502460,1724285129631,150.0,9.839e-05,2]
[335502461,1724285129652,150.0,9.839e-05,2]
[335502462,1724285129672,150.0,9.839e-05,2]
[335502463,1724285129691,150.0,9.839e-05,2]
[335502464,1724285129712,150.0,9.839e-05,2]
[335502465,1724285129733,150.0,9.839e-05,2]
[335502466,1724285129754,55.46,9.839e-05,2]
[335502467,1724285145551,3900.0,9.81e-05,2]
[335502468,1724285188270,1197.49780565,9.839e-05,2]
[335502469,1724285188291,452.50219435,9.839e-05,2]
[335502470,1724285190486,150.0,9.859e-05,2]
[335502471,1724285190508,150.0,9.859e-05,2]
[335502472,1724285190529,150.0,9.859e-05,2]
[335502473,1724285190665,150.0,9.859e-05,2]
[335502474,1724285190686,150.0,9.859e-05,2]
[335502475,1724285190706,150.0,9.859e-05,2]
[335502476,1724285190726,50.066428,9.859e-05,2]
[335502477,1724285220338,99.933572,9.796e-05,2]
[335502478,1724285220358,150.0,9.796e-05,2]
[335502479,1724285220378,150.0,9.796e-05,2]
[335502480,1724285220398,244.54,9.796e-05,2]
[335502481,1724285220417,3542.506428,9.796e-05,2]
[335502482,1724285222267,-39639.22,9.91e-05,2]
[335502483,1724285243406,200.24672948,9.86e-05,2]
[335502484,1724285249465,412.14592953,9.859e-05,2]
[335502485,1724285250701,1269.59062795,9.859e-05,2]
[335502486,1724285254962,287.37420846,9.859e-05,2]
[335502487,1724285257039,155.20777064,9.859e-05,2]
[335502488,1724285257262,155.17442488,9.859e-05,2]
[335502489,1724285260849,155.31034761,9.859e-05,2]
[335502490,1724285261275,15042.56946885,9.859e-05,2]
[335502491,1724285262474,291.80613083,9.859e-05,2]
[335502492,1724285265423,2321.75436177,9.859e-05,2]
[335502493,1724285265444,6004.99137765,9.859e-05,2]
[335502494,1724285265463,10000.0,9.859e-05,2]
[335502495,1724285265483,2083.28139159,9.859e-05,2]
[335502496,1724285270596,295.50430273,9.859e-05,2]
[335502497,1724285270617,2778.08,9.859e-05,2]
[335502498,1724285272461,840.0,9.82e-05,2]
[335502500,1724285282130,652.45,8.219e-05,2]
[335502501,1724285305315,320.0,9.751e-05,2]
[335502502,1724285324821,174.16188238,9.859e-05,2]
[335502503,1724285359601,155.0,9.899e-05,2]
[335502504,1724285370596,628.13857665,9.751e-05,2]
[335502505,1724285372045,1683.18,9.886e-05,2]
[335502506,1724285377425,685.70814938,9.751e-05,2]
[335502507,1724285377446,699.21578175,9.751e-05,2]
[335502509,1724285404215,2750.12,9.854e-05,2]
[335502510,1724285407063,155.0,9.899e-05,2]
[335502511,1724285414271,264.54478532,9.899e-05,2]
[335502512,1724285418473,291.83011136,9.899e-05,2]
[335502513,1724285418544,200.0,9.873e-05,2]
[335502514,1724285424877,250.0,9.846e-05,2]
[335502515,1724285430969,1269.9153111,9.899e-05,2]
[335502517,1724285432275,-6287.88,9.917e-05,2]
[335502518,1724285432285,-723.63700054,9.941e-05,2]
[335502519,1724285432295,-3034.58196902,9.943e-05,2]
[335502520,1724285432304,-12551.3106702,9.988e-05,2]
[335502521,1724285432314,-1139.1217656,9.999e-05,2]
[335502522,1724285432323,-1050.0,0.0001,2]
[335502523,1724285432332,-4198.21786108,0.0001,2]
[335502524,1724285432341,-155.0,0.00010009,2]
[335502525,1724285432351,-150.0,0.00010036,2]
[335502526,1724285432360,-499.99,0.00010037,2]
[335502527,1724285432369,-499.99,0.00010037,2]
[335502528,1724285432378,-6742.0,0.00010064,2]
[335502529,1724285432387,-155.0,0.00010097,2]
[335502530,1724285432396,-193.75,0.00010267,2]
[335502531,1724285432406,-200.0,0.00010306,2]
[335502532,1724285432415,-652.45,0.00010467,2]
[335502533,1724285432425,-1257.73185636,0.00010799,2]
[335502534,1724285432434,-948.265,0.000108,2]
[335502535,1724285432443,-1500.0,0.00010801,2]
[335502536,1724285432453,-1500.0,0.00010852,2]
[335502537,1724285432462,-150.0,0.00010858,2]
[335502538,1724285432471,-150.0,0.0001087,2]
[335502539,1724285432481,-264.61688049,0.00010888,2]
[335502540,1724285432490,-453.76056783,0.00010888,2]
[335502541,1724285432499,-155.12013027,0.00010888,2]
[335502542,1724285432508,-155.28204903,0.00010888,2]
[335502543,1724285432517,-230.08927246,0.0001089,2]
[335502544,1724285432526,-155.29152429,0.0001089,2]
[335502545,1724285432535,-179.37698944,0.00010899,2]
[335502546,1724285432543,-249.55432365,0.00010899,2]
[335502547,1724285432552,-300.73684348,0.00010899,2]
[335502548,1724285432561,-10376.77873166,0.000109,2]
[335502549,1724285432573,-295.4294,0.000109,2]
[335502550,1724285432634,-6176.36833576,0.000109,2]
[335502583,1724285433302,2403.54323944,9.899e-05,2]
[335502584,1724285433502,693.69786065,9.899e-05,2]
[335502585,1724285434475,412.21466658,9.899e-05,2]
[335502636,1724285439115,-155.0,0.0001089,2]
[335502637,1724285439125,-951.44534,0.000109,2]
[335502638,1724285439138,-320.85635304,0.000109,2]
[335502639,1724285439150,-52321.30694968,0.000109,2]
[335502640,1724285439169,-1954.87549614,0.000109,2]
[335502641,1724285439187,-7611.06041232,0.000109,2]
[335502644,1724285440820,-2184.2473207,0.000109,2]
[335502645,1724285440832,-315.7526793,0.000109,2]
[335502646,1724285440843,-526.43824053,0.000109,2]
[335502729,1724285442886,159.18491271,9.899e-05,2]
[335502737,1724285443335,-3939.92439593,0.000109,2]
[335502738,1724285443346,-935.898057,0.000109,2]
[335502739,1724285443388,-4148.23148794,0.000109,2]
[335502740,1724285443398,-179.37698944,0.000109,2]
[335502741,1724285443407,-159.62,0.00010959,2]
[335502742,1724285443416,-189.11,0.00010959,2]
[335502743,1724285443426,-320.0,0.0001097,2]
[335502744,1724285443436,-1264.51444797,0.00010977,2]
[335502745,1724285443445,-635.42896796,0.00010979,2]
[335502746,1724285443455,-1500.0,0.00010991,2]
[335502747,1724285443464,-1298.23330788,0.00010993,2]
[335502748,1724285443473,-150.0,0.00010995,2]
[335502749,1724285443483,-150.0,0.00010995,2]
[335502750,1724285443492,-150.0,0.00010996,2]
[335502751,1724285443501,-150.0,0.00010996,2]
[335502752,1724285443510,-150.0,0.00010996,2]
[335502753,1724285443519,-150.0,0.00010997,2]
[335502754,1724285443528,-150.0,0.00010997,2]
[335502755,1724285443537,-150.0,0.00010997,2]
[335502756,1724285443546,-150.0,0.00010998,2]
[335502757,1724285443555,-150.0,0.00010998,2]
[335502758,1724285443564,-150.0,0.00010998,2]
[335502759,1724285443573,-500.0,0.00010998,2]
[335502760,1724285443582,-235.19861104,0.00010998,2]
[335502761,1724285443591,-173.11725607,0.00010998,2]
[335502762,1724285443600,-42.66107404,0.00010998,2]
[335502763,1724285443611,-288.31644121,0.00010998,2]
[335502764,1724285443621,-545.5634359,0.00010999,2]
[335502765,1724285443632,-420.88789489,0.00010999,2]
[335502766,1724285443643,-2622.90767127,0.00010999,2]
[335502767,1724285443653,-1723.80973372,0.00010999,2]
[335502768,1724285443668,-448.95942964,0.00010999,2]
[335502769,1724285443679,-1464.06406546,0.00010999,2]
[335502770,1724285443689,-1364.2199562,0.00010999,2]
[335502771,1724285443709,-694.5375725,0.00010999,2]
[335502773,1724285446546,-2563.8841707,0.00010999,2]
[335502774,1724285446561,-300.0,0.00010999,2]
[335502775,1724285446604,-656.93263507,0.00010999,2]
[335502782,1724285446980,-1773.17058564,0.00010999,2]
[335502783,1724285446991,-7767.81612531,0.00010999,2]
[335502784,1724285447002,-13109.52489308,0.00010999,2]
[335502785,1724285447013,-50000.88335385,0.00010999,2]
[335502786,1724285451329,450.73333109,9.85e-05,2]
[335502787,1724285451351,1049.26666891,9.85e-05,2]
[335502788,1724285454767,1311.21932228,9.899e-05,2]
[335502789,1724285459903,3053.1830351,9.899e-05,2]
[335502790,1724285513561,3146.2976,9.817e-05,2]
[335502791,1724285588724,802.77801531,9.817e-05,2]
[335502792,1724285612907,159.00019183,9.817e-05,2]
[335502793,1724285621459,478.25516657,9.839e-05,2]
[335502794,1724285621479,577.73483343,9.839e-05,2]
[335502795,1724285662431,760.72426636,9.817e-05,2]
[335502796,1724285797973,622.37,8.219e-05,2]
[335502797,1724285832319,200.0,9.894e-05,2]
[335502798,1724285989510,429.53,9.869e-05,2]
[335502799,1724285990800,300.0,9.9e-05,3]
[335502800,1724286094331,7109.64090021,9.744e-05,2]
[335502801,1724286094353,7970.73909979,9.744e-05,2]
[335502802,1724286097714,1587.45,9.753e-05,2]
[335502803,1724286102467,441.81090021,9.766e-05,2]
[335502804,1724286102488,86.17909979,9.766e-05,2]
[335502806,1724286113502,961.92,9.763e-05,2]
[335502809,1724286264468,624.46,8.219e-05,2]
[335502810,1724286319907,7588.87744833,9e-05,2]
[335502811,1724286336578,200.0,9.709e-05,2]
[335502812,1724286355469,538.56345188,6.94e-05,2]
[335502813,1724286355493,5342.69119296,6.94e-05,2]
[335502814,1724286355830,4657.30880704,8.219e-05,2]
[335502815,1724286355852,10000.0,8.219e-05,2]
[335502816,1724286356014,1590.09848436,8.219e-05,2]
[335502819,1724286388551,291.7821503,9.709e-05,2]
[335502820,1724286395755,1269.69809029,9.709e-05,2]
[335502821,1724286400113,194.08966662,9.709e-05,2]
[335502822,1724286405511,150.0,9.807e-05,2]
[335502823,1724286411292,1311.21932228,9.709e-05,2]
[335502824,1724286411840,5193.11228615,9.709e-05,2]
[335502825,1724286411863,10000.0,9.709e-05,2]
[335502826,1724286411885,1046.07517111,9.709e-05,2]
[335502827,1724286428523,300.0,9.9e-05,3]
[335502828,1724286454389,1000.0,9.702e-05,2]
[335502829,1724286472714,7653.92482889,9.807e-05,2]
[335502830,1724286472735,8889.76270946,9.807e-05,2]
[335502831,1724286476504,250.0,9.661e-05,2]
[335502832,1724286483301,150.0,9.899e-05,2]
[335502833,1724286483324,150.0,9.899e-05,2]
[335502834,1724286483347,150.0,9.899e-05,2]
[335502835,1724286483368,150.0,9.899e-05,2]
[335502836,1724286483389,150.0,9.899e-05,2]
[335502837,1724286483411,150.0,9.899e-05,2]
[335502838,1724286483432,150.0,9.899e-05,2]
[335502839,1724286483454,150.0,9.899e-05,2]
[335502840,1724286483476,150.0,9.899e-05,2]
[335502841,1724286483497,150.0,9.899e-05,2]
[335502842,1724286483521,150.0,9.899e-05,2]
[335502843,1724286483544,150.0,9.899e-05,2]
[335502844,1724286483566,150.0,9.899e-05,2]
[335502845,1724286483588,150.0,9.899e-05,2]
[335502846,1724286483612,150.0,9.899e-05,2]
[335502847,1724286483634,150.0,9.899e-05,2]
[335502848,1724286483655,150.0,9.899e-05,2]
[335502849,1724286483676,150.0,9.899e-05,2]
[335502850,1724286483699,150.0,9.899e-05,2]
[335502851,1724286483720,150.0,9.899e-05,2]
[335502852,1724286483741,150.0,9.899e-05,2]
[335502853,1724286483762,150.0,9.899e-05,2]
[335502854,1724286483782,150.0,9.899e-05,2]
[335502855,1724286483804,150.0,9.899e-05,2]
[335502856,1724286483826,860.23729054,9.899e-05,2]
[335502857,1724286483849,21708.73958939,9.899e-05,2]
[335502858,1724286488547,158.56296123,9.702e-05,2]
[335502859,1724286488569,150.0,9.702e-05,2]
[335502860,1724286488590,62.36393814,9.702e-05,2]
[335502861,1724286497835,150.0,9.702e-05,2]
[335502862,1724286497856,150.0,9.702e-05,2]
[335502863,1724286497877,150.0,9.702e-05,2]
[335502864,1724286497897,150.0,9.702e-05,2]
[335502865,1724286497918,150.0,9.702e-05,2]
[335502866,1724286497939,150.0,9.702e-05,2]
[335502867,1724286497960,150.0,9.702e-05,2]
[335502868,1724286497981,288.19171405,9.702e-05,2]
[335502869,1724286498005,13246.61973337,9.702e-05,2]
[335502870,1724286510309,1334.05038074,9.702e-05,2]
[335502871,1724286513686,3073.58430273,9.702e-05,2]
[335502872,1724286514386,760.05715064,9.702e-05,2]
[335502873,1724286515778,10617.5436,9.822e-05,2]
[335502874,1724286518967,6023.36271218,9.846e-05,2]
[335502875,1724286560017,500.0,9.846e-05,2]
[335502876,1724286560378,500.0,9.846e-05,2]
[335502877,1724286560678,500.0,9.846e-05,2]
[335502878,1724286561028,600.0,9.846e-05,2]
[335502879,1724286562480,5740.10640611,9.822e-05,2]
[335502880,1724286590109,908.2,9.728e-05,2]
[335502881,1724286590829,2259.89359389,9.822e-05,2]
[335502882,1724286600079,150.0,9.843e-05,2]
[335502883,1724286615688,2551.45379221,9.822e-05,2]
[335502889,1724286631716,-300.0,9.928e-05,2]
[335502890,1724286631726,-1074.67923523,9.941e-05,2]
[335502891,1724286631736,-168.0,9.959e-05,2]
[335502892,1724286631746,-963.13097299,9.988e-05,2]
[335502893,1724286631755,-171.2,9.99e-05,2]
[335502894,1724286631766,-3034.58196902,9.999e-05,2]
[335502895,1724286631776,-700.0,0.0001,3]
[335502896,1724286631933,-1050.0,0.0001,2]
[335502897,1724286631947,-5420.80296546,0.0001,2]
[335502898,1724286631957,-769.51680333,0.0001,2]
[335502899,1724286631967,-155.0,0.00010009,2]
[335502900,1724286631977,-150.99,0.00010026,2]
[335502901,1724286631987,-287.26,0.00010026,2]
[335502902,1724286631997,-174.07142396,0.00010026,2]
[335502903,1724286632007,-499.99,0.00010097,2]
[335502904,1724286632016,-298.64010758,0.00010097,2]
[335502905,1724286632026,-155.0,0.00010097,2]
[335502906,1724286632035,-1100.0,0.000101,3]
[335502907,1724286632044,-1500.0,0.000102,3]
[335502908,1724286632053,-1800.0,0.000103,3]
[335502909,1724286632063,-300.0,0.000104,3]
[335502910,1724286632073,-624.46,0.0001046,2]
[335502911,1724286632083,-300.0,0.000105,3]
[335502912,1724286632092,-300.0,0.000106,3]
[335502913,1724286632102,-300.0,0.000107,3]
[335502914,1724286632111,-394.9792,0.0001078,2]
[335502915,1724286632121,-150.0,0.00010796,2]
[335502916,1724286632131,-14179.65550212,0.00010797,2]
[335502917,1724286632141,-923.0,0.000108,3]
[335502918,1724286632151,-297.48958849,0.00010852,2]
[335502919,1724286632160,-523.14136037,0.00010852,2]
[335502920,1724286632169,-1621.6454,0.00010877,2]
[335502921,1724286632180,-150.0,0.00010877,2]
[335502922,1724286632189,-40291.15206346,0.0001088,2]
[335502923,1724286632198,-150.0,0.00010883,2]
[335502924,1724286632207,-203.44849149,0.0001089,2]
[335502925,1724286632217,-3000.0,0.0001089,2]
[335502926,1724286632226,-415.21858786,0.0001089,2]
[335502927,1724286632235,-2500.0,0.00010896,2]
[335502928,1724286632244,-1000.0,0.00010897,2]
[335502929,1724286632254,-184.6557506,0.00010897,2]
[335502930,1724286632263,-174.83539434,0.00010897,2]
[335502931,1724286632272,-500.0,0.00010899,2]
[335502932,1724286632283,-1000.0,0.00010899,2]
[335502933,1724286632292,-3237.1381,0.00010899,2]
[335502934,1724286632302,-606.671,0.00010899,2]
[335502935,1724286632312,-1636.3138,0.00010899,2]
[335502936,1724286632321,-184.6557506,0.00010899,2]
[335502937,1724286632331,-1000.0,0.00010915,2]
[335502938,1724286632340,-531.39122984,0.00010949,2]
[335502939,1724286632350,-157.62,0.00010959,2]
[335502940,1724286632359,-250.0,0.00010959,2]
[335502941,1724286632368,-172.62,0.00010959,2]
[335502942,1724286632378,-150.0,0.00010959,2]
[335502943,1724286632387,-2000.0,0.00010959,2]
[335502944,1724286632396,-380.4,0.00010959,2]
[335502945,1724286632406,-200.0,0.00010973,2]
[335502946,1724286632415,-500.0,0.00010986,2]
[335502947,1724286632425,-1864.46,0.00010986,2]
[335502948,1724286632434,-1266.41,0.00010986,2]
[335502949,1724286632443,-4249.16,0.00010986,2]
[335502950,1724286632453,-3676.98,0.00010986,2]
[335502951,1724286632462,-2937.4,0.00010986,2]
[335502952,1724286632472,-6834.79,0.00010986,2]
[335502953,1724286632481,-5360.61,0.00010986,2]
[335502954,1724286632490,-5964.14,0.00010986,2]
[335502955,1724286632499,-500.0,0.00010986,2]
[335502956,1724286632508,-782.0,0.00010986,2]
[335502957,1724286632518,-109165.0,0.00010986,2]
[335502958,1724286632527,-580.0,0.00010986,2]
[335502959,1724286632536,-155.0,0.00010993,2]
[335502960,1724286632546,-167.25085888,0.00010993,2]
[335502961,1724286632555,-233.08680165,0.00010995,2]
[335502962,1724286632564,-500.0,0.00010995,2]
[335502963,1724286632576,-500.0,0.00010995,2]
[335502964,1724286632585,-500.0,0.00010995,2]
[335502965,1724286632594,-500.0,0.00010995,2]
[335502966,1724286632604,-1409.39,0.00010995,2]
[335502967,1724286632613,-500.0,0.00010995,2]
[335502968,1724286632623,-500.0,0.00010995,2]
[335502969,1724286632632,-1864.46,0.00010995,2]
[335502970,1724286632641,-1864.46,0.00010995,2]
[335502971,1724286632651,-2232.73,0.00010995,2]
[335502972,1724286632661,-4783.26,0.00010995,2]
[335502973,1724286632671,-816.91,0.00010995,2]
[335502974,1724286632680,-1266.41,0.00010995,2]
[335502975,1724286632689,-1266.41,0.00010995,2]
[335502976,1724286632698,-4249.16,0.00010995,2]
[335502977,1724286632707,-4249.16,0.00010995,2]
[335502978,1724286632716,-16932.38,0.00010995,2]
[335502979,1724286632725,-3676.98,0.00010995,2]
[335502980,1724286632735,-5697.62,0.00010995,2]
[335502981,1724286632744,-3676.98,0.00010995,2]
[335502982,1724286632753,-5515.11,0.00010995,2]
[335502983,1724286632763,-2937.4,0.00010995,2]
[335502984,1724286632772,-2937.4,0.00010995,2]
[335502985,1724286632781,-5981.35,0.00010995,2]
[335502986,1724286632791,-6834.79,0.00010995,2]
[335502987,1724286632800,-6834.79,0.00010995,2]
[335502988,1724286632809,-6640.11,0.00010995,2]
[335502989,1724286632818,-4291.93,0.00010995,2]
[335502990,1724286632827,-5360.61,0.00010995,2]
[335502991,1724286632836,-5360.61,0.00010995,2]
[335502992,1724286632845,-500.0,0.00010995,2]
[335502993,1724286632854,-4644.54,0.00010995,2]
[335502994,1724286632863,-5964.14,0.00010995,2]
[335502995,1724286632873,-5964.14,0.00010995,2]
[335502996,1724286632883,-4336.67,0.00010995,2]
[335502997,1724286632892,-212.55946011,0.00010996,2]
[335502998,1724286632902,-539.08821902,0.00010996,2]
[335502999,1724286632911,-500.0,0.00010996,2]
[335503000,1724286632921,-262.26252724,0.00010996,2]
[335503001,1724286632930,-500.0,0.00010996,2]
[335503002,1724286632939,-500.0,0.00010996,2]
[335503003,1724286632948,-3119.73,0.00010996,2]
[335503004,1724286632958,-1810.97,0.00010996,2]
[335503005,1724286632967,-1810.97,0.00010996,2]
[335503006,1724286632977,-1810.97,0.00010996,2]
[335503007,1724286632986,-1810.97,0.00010996,2]
[335503008,1724286632995,-8505.29,0.00010996,2]
[335503009,1724286633005,-1303.34,0.00010996,2]
[335503010,1724286633014,-1303.34,0.00010996,2]
[335503011,1724286633023,-1303.34,0.00010996,2]
[335503012,1724286633033,-1303.34,0.00010996,2]
[335503013,1724286633042,-2297.57,0.00010996,2]
[335503014,1724286633052,-2297.57,0.00010996,2]
[335503015,1724286633062,-2297.57,0.00010996,2]
[335503016,1724286633072,-2297.57,0.00010996,2]
[335503017,1724286633082,-78097.9,0.00010996,2]
[335503018,1724286633092,-2961.49,0.00010996,2]
[335503019,1724286633102,-78097.9,0.00010996,2]
[335503020,1724286633112,-51348.71743666,0.00010996,2]
[335503021,1724286633170,12126.29715151,9.861e-05,2]
[335503026,1724286637417,-664.7658,9.988e-05,2]
[335503027,1724286637474,-298.36517299,9.988e-05,2]
[335503028,1724286637484,-388.50876642,0.00010959,2]
[335503029,1724286637844,-205.42123358,0.00010959,2]
[335503030,1724286637854,-497.78412799,0.00010986,2]
[335503031,1724286637866,-2.21587201,0.00010986,2]
[335503032,1724286637875,-500.0,0.00010994,2]
[335503033,1724286637885,-500.0,0.00010994,2]
[335503034,1724286637894,-500.0,0.00010994,2]
[335503035,1724286637903,-500.0,0.00010994,2]
[335503036,1724286637912,-500.0,0.00010994,2]
[335503037,1724286637922,-523.30868016,0.00010994,2]
[335503038,1724286637934,-334.24242078,0.00010994,2]
[335503039,1724286637943,-500.0,0.00010995,2]
[335503042,1724286637952,-500.0,0.00010995,2]
[335503044,1724286637961,-500.0,0.00010995,2]
[335503045,1724286637970,-500.0,0.00010995,2]
[335503046,1724286637980,-500.0,0.00010995,2]
[335503047,1724286637990,-500.0,0.00010995,2]
[335503048,1724286638000,-500.0,0.00010995,2]
[335503049,1724286638010,-500.0,0.00010995,2]
[335503050,1724286638019,-311.39110582,0.00010995,2]
[335503051,1724286638029,-26749.18256334,0.00010996,2]
[335503052,1724286638038,-78097.9,0.00010996,2]
[335503053,1724286638047,-25365.06,0.00010996,2]
[335503054,1724286638056,-3865.03,0.00010996,2]
[335503055,1724286638065,-3865.03,0.00010996,2]
[335503056,1724286638074,-3865.03,0.00010996,2]
[335503057,1724286638083,-3865.03,0.00010996,2]
[335503058,1724286638093,-7178.33,0.00010996,2]
[335503059,1724286638102,-500.0,0.00010996,2]
[335503060,1724286638112,-500.0,0.00010996,2]
[335503061,1724286638121,-422.58,0.00010996,2]
[335503062,1724286638130,-157.056635,0.00010996,2]
[335503063,1724286638139,-500.0,0.00010996,2]
[335503064,1724286638149,-500.0,0.00010996,2]
[335503065,1724286638157,-436.39,0.00010996,2]
[335503066,1724286638166,-500.0,0.00010996,2]
[335503067,1724286638178,-500.0,0.00010996,2]
[335503068,1724286638187,-500.0,0.00010996,2]
[335503069,1724286638196,-500.0,0.00010996,2]
[335503070,1724286638205,-500.0,0.00010996,2]
[335503071,1724286638214,-500.0,0.00010996,2]
[335503072,1724286638223,-500.0,0.00010996,2]
[335503073,1724286638232,-13386.27,0.00010996,2]
[335503074,1724286638242,-500.0,0.00010996,2]
[335503075,1724286638251,-500.0,0.00010996,2]
[335503076,1724286638260,-500.0,0.00010996,2]
[335503077,1724286638269,-500.0,0.00010996,2]
[335503078,1724286638278,-613.51479994,0.00010996,2]
[335503079,1724286638287,-1409.39,0.00010996,2]
[335503080,1724286638295,-1409.39,0.00010996,2]
[335503081,1724286638304,-1409.39,0.00010996,2]
[335503082,1724286638314,-1409.39,0.00010996,2]
[335503083,1724286638323,-5129.3,0.00010996,2]
[335503084,1724286638332,-1409.39,0.00010996,2]
[335503085,1724286638341,-408.41,0.00010996,2]
[335503086,1724286638351,-1409.39,0.00010996,2]
[335503087,1724286638360,-1409.39,0.00010996,2]
[335503088,1724286638369,-1409.39,0.00010996,2]
[335503089,1724286638378,-1409.39,0.00010996,2]
[335503090,1724286638387,-1864.46,0.00010996,2]
[335503091,1724286638396,-1864.46,0.00010996,2]
[335503092,1724286638406,-1864.46,0.00010996,2]
[335503093,1724286638415,-1864.46,0.00010996,2]
[335503094,1724286638424,-2232.73,0.00010996,2]
[335503095,1724286638433,-1864.46,0.00010996,2]
[335503096,1724286638442,-2232.73,0.00010996,2]
[335503097,1724286638451,-1864.46,0.00010996,2]
[335503098,1724286638459,-2232.73,0.00010996,2]
[335503099,1724286638469,-1864.46,0.00010996,2]
[335503100,1724286638478,-2232.73,0.00010996,2]
[335503101,1724286638487,-1864.46,0.00010996,2]
[335503102,1724286638495,-2232.73,0.00010996,2]
[335503103,1724286638504,-1864.46,0.00010996,2]
[335503104,1724286638513,-2232.73,0.00010996,2]
[335503105,1724286638522,-1864.46,0.00010996,2]